fUSD/lending_fUSD_20260405
["ID","MTS","AMOUNT","RATE_DAILY","PERIOD"]
[419816429,1775395852191,-150.0,0.0001481,2]
[419816430,1775395852201,-150.0,0.00014813,2]
[419816431,1775395852211,-797.22,0.00014817,2]
[419816432,1775395852221,-150.0,0.00014817,2]
[419816433,1775395852230,-150.0,0.00014821,2]
[419816434,1775395852240,-150.0,0.00014821,2]
[419816435,1775395852250,-150.0,0.00014828,2]
[419816436,1775395852260,-9905.5980765,0.00014829,2]
[419816437,1775395852269,-500.0,0.00014829,2]
[419816438,1775395852279,-151.0,0.00014829,2]
[419816439,1775395852289,-150.0,0.00014831,2]
[419816440,1775395852298,-150.0,0.00014835,2]
[419816441,1775395852308,-150.0,0.00014836,2]
[419816442,1775395852317,-150.0,0.00014844,2]
[419816443,1775395852327,-150.0,0.00014848,2]
[419816444,1775395852336,-150.0,0.00014849,2]
[419816445,1775395852346,-150.0,0.00014849,2]
[419816446,1775395852356,-150.0,0.00014851,2]
[419816447,1775395852365,-150.0,0.00014851,2]
[419816448,1775395852375,-150.0,0.00014852,2]
[419816449,1775395852384,-150.0,0.00014865,2]
[419816450,1775395852394,-150.0,0.00014865,2]
[419816451,1775395852404,-150.0,0.0001487,2]
[419816452,1775395852413,-150.0,0.00014872,2]
[419816453,1775395852423,-150.0,0.00014873,2]
[419816454,1775395852432,-150.0,0.00014877,2]
[419816455,1775395852442,-150.0,0.00014877,2]
[419816456,1775395852451,-10272.10520533,0.00014884,2]
[419816457,1775395852461,-500.0,0.00014884,2]
[419816458,1775395852470,-151.0,0.00014884,2]
[419816459,1775395852480,-150.0,0.00014887,2]
[419816460,1775395852489,-150.0,0.00014892,2]
[419816461,1775395852499,-150.0,0.00014895,2]
[419816462,1775395852508,-150.0,0.00014896,2]
[419816463,1775395852517,-157.0,0.000149,2]
[419816464,1775395852527,-157.0,0.000149,2]
[419816465,1775395852536,-157.0,0.000149,2]
[419816466,1775395852545,-229.30734682,0.000149,2]
[419816467,1775395852555,-229.3073468,0.000149,2]
[419816468,1775395852564,-229.3073468,0.000149,2]
[419816469,1775395852574,-150.0,0.00014904,2]
[419816470,1775395852583,-150.0,0.00014905,2]
[419816471,1775395852592,-150.0,0.00014905,2]
[419816472,1775395852602,-150.0,0.00014912,2]
[419816473,1775395852611,-150.0,0.00014913,2]
[419816474,1775395852621,-150.0,0.00014916,2]
[419816475,1775395852630,-150.0,0.00014918,2]
[419816476,1775395852639,-150.0,0.00014922,2]
[419816477,1775395852649,-150.0,0.00014924,2]
[419816478,1775395852658,-200.0,0.00014932,2]
[419816479,1775395852667,-150.0,0.00014933,2]
[419816480,1775395852677,-150.0,0.00014933,2]
[419816481,1775395852686,-150.0,0.00014933,2]
[419816482,1775395852695,-150.0,0.00014933,2]
[419816483,1775395852706,-150.0,0.00014933,2]
[419816484,1775395852717,-150.0,0.00014933,2]
[419816485,1775395852728,-150.0,0.00014939,2]
[419816486,1775395852738,-10652.17309792,0.00014939,2]
[419816487,1775395852749,-500.0,0.00014939,2]
[419816488,1775395852759,-151.0,0.00014939,2]
[419816489,1775395852768,-150.0,0.00014941,2]
[419816490,1775395852778,-150.0,0.00014953,2]
[419816491,1775395852787,-150.0,0.00014954,2]
[419816492,1775395852797,-150.0,0.00014957,2]
[419816493,1775395852807,-150.0,0.00014961,2]
[419816494,1775395852816,-150.0,0.00014961,2]
[419816495,1775395852826,-150.0,0.00014963,2]
[419816496,1775395852835,-150.0,0.00014968,2]
[419816497,1775395852845,-150.0,0.00014974,2]
[419816498,1775395852855,-150.0,0.00014974,2]
[419816499,1775395852865,-150.0,0.00014976,2]
[419816500,1775395852875,-150.0,0.00014982,2]
[419816501,1775395852884,-150.0,0.00014986,2]
[419816502,1775395852894,-150.0,0.00014989,2]
[419816503,1775395852903,-150.0,0.00014989,2]
[419816504,1775395852912,-150.0,0.00014991,2]
[419816505,1775395852922,-5850.7516326,0.00014994,2]
[419816506,1775395852932,-500.0,0.00014994,2]
[419816507,1775395852941,-151.0,0.00014994,2]
[419816508,1775395852951,-150.0,0.00014995,2]
[419816509,1775395852961,-788.29024,0.00015,2]
[419816510,1775395852970,-150.0,0.00015008,2]
[419816511,1775395852980,-150.0,0.00015009,2]
[419816512,1775395852989,-150.0,0.00015011,2]
[419816513,1775395852999,-150.0,0.00015015,2]
[419816514,1775395853009,-2000.0,0.00015015,2]
[419816515,1775395853018,-500.0,0.00015015,2]
[419816516,1775395853028,-150.0,0.00015018,2]
[419816517,1775395853038,-150.0,0.00015018,2]
[419816518,1775395853047,-150.0,0.00015019,2]
[419816519,1775395853057,-150.0,0.00015022,2]
[419816520,1775395853067,-150.0,0.00015026,2]
[419816521,1775395853076,-150.0,0.00015031,2]
[419816522,1775395853086,-505.3,0.00015034,2]
[419816523,1775395853096,-150.0,0.00015036,2]
[419816524,1775395853105,-150.0,0.0001504,2]
[419816525,1775395853115,-150.0,0.0001504,2]
[419816526,1775395853125,-150.0,0.00015043,2]
[419816527,1775395853135,-150.0,0.00015046,2]
[419816528,1775395853144,-150.0,0.00015046,2]
[419816529,1775395853154,-500.0,0.00015049,2]
[419816530,1775395853163,-151.0,0.00015049,2]
[419816531,1775395853172,-150.0,0.00015054,2]
[419816532,1775395853182,-150.0,0.00015056,2]
[419816533,1775395853192,-150.0,0.00015061,2]
[419816534,1775395853201,-800.0,0.00015068,2]
[419816535,1775395853211,-150.0,0.00015069,2]
[419816536,1775395853220,-150.0,0.00015071,2]
[419816537,1775395853231,-150.0,0.00015074,2]
[419816538,1775395853241,-150.0,0.00015074,2]
[419816539,1775395853250,-150.0,0.00015076,2]
[419816540,1775395853259,-150.0,0.00015077,2]
[419816541,1775395853269,-150.0,0.00015078,2]
[419816542,1775395853279,-150.0,0.00015096,2]
[419816543,1775395853288,-150.0,0.00015097,2]
[419816544,1775395853298,-150.0,0.00015098,2]
[419816545,1775395853308,-150.0,0.00015099,2]
[419816546,1775395853318,-161.45,0.000151,3]
[419816547,1775395853327,-150.0,0.00015102,2]
[419816548,1775395853337,-150.0,0.00015102,2]
[419816549,1775395853346,-150.0,0.00015104,2]
[419816550,1775395853356,-500.0,0.00015104,2]
[419816551,1775395853365,-151.0,0.00015104,2]
[419816552,1775395853374,-150.0,0.00015111,2]
[419816553,1775395853384,-150.0,0.00015113,2]
[419816554,1775395853394,-150.0,0.00015118,2]
[419816555,1775395853404,-150.0,0.00015121,2]
[419816556,1775395853413,-150.0,0.00015123,2]
[419816557,1775395853422,-150.0,0.00015127,2]
[419816558,1775395853432,-150.0,0.0001513,2]
[419816559,1775395853441,-150.0,0.0001513,2]
[419816560,1775395853451,-150.0,0.0001513,2]
[419816561,1775395853460,-3476.7,0.00015135,2]
[419816562,1775395853469,-150.0,0.00015138,2]
[419816563,1775395853478,-150.0,0.00015144,2]
[419816564,1775395853488,-150.0,0.00015148,2]
[419816565,1775395853497,-150.0,0.00015156,2]
[419816566,1775395853507,-150.0,0.00015158,2]
[419816567,1775395853515,-150.0,0.00015158,2]
[419816568,1775395853524,-150.0,0.00015159,2]
[419816569,1775395853535,-500.0,0.00015159,2]
[419816570,1775395853545,-151.0,0.00015159,2]
[419816571,1775395853555,-150.0,0.00015165,2]
[419816572,1775395853564,-150.0,0.00015166,2]
[419816573,1775395853573,-150.0,0.00015168,2]
[419816574,1775395853583,-150.0,0.00015174,2]
[419816575,1775395853592,-150.0,0.00015179,2]
[419816576,1775395853717,-150.0,0.00015183,2]
[419816577,1775395853726,-150.0,0.00015185,2]
[419816578,1775395853736,-150.0,0.00015186,2]
[419816579,1775395853746,-150.0,0.00015186,2]
[419816580,1775395853756,-150.0,0.00015189,2]
[419816581,1775395853767,-150.0,0.000152,2]
[419816582,1775395853777,-150.0,0.000152,2]
[419816583,1775395853787,-150.0,0.000152,2]
[419816584,1775395853796,-150.0,0.000152,2]
[419816585,1775395853806,-150.0,0.000152,2]
[419816586,1775395853820,-150.0,0.000152,2]
[419816587,1775395853830,-150.0,0.000152,2]
[419816588,1775395853841,-10000.0,0.00015205,2]
[419816589,1775395853850,-150.0,0.00015211,2]
[419816590,1775395853859,-150.0,0.00015214,2]
[419816591,1775395853869,-150.0,0.00015214,2]
[419816592,1775395853878,-500.0,0.00015214,2]
[419816593,1775395853887,-151.0,0.00015214,2]
[419816594,1775395853897,-150.0,0.00015215,2]
[419816595,1775395853907,-150.0,0.00015217,2]
[419816596,1775395853916,-150.0,0.00015221,2]
[419816597,1775395853926,-150.0,0.00015226,2]
[419816598,1775395853936,-150.0,0.00015232,2]
[419816599,1775395853946,-150.0,0.00015234,2]
[419816600,1775395853955,-150.0,0.00015235,2]
[419816601,1775395853964,-150.0,0.00015241,2]
[419816602,1775395853973,-150.0,0.00015242,2]
[419816603,1775395853983,-150.0,0.00015242,2]
[419816604,1775395853993,-150.0,0.00015244,2]
[419816605,1775395854002,-150.0,0.00015252,2]
[419816606,1775395854011,-150.0,0.00015256,2]
[419816607,1775395854020,-150.0,0.00015262,2]
[419816608,1775395854029,-500.0,0.00015269,2]
[419816609,1775395854038,-151.0,0.00015269,2]
[419816610,1775395854048,-150.0,0.0001527,2]
[419816611,1775395854057,-150.0,0.0001527,2]
[419816612,1775395854066,-150.0,0.0001527,2]
[419816613,1775395854075,-150.0,0.00015273,2]
[419816614,1775395854084,-155.80569417,0.00015277,2]
[419816615,1775395854094,-150.0,0.00015277,2]
[419816616,1775395854102,-150.0,0.00015279,2]
[419816617,1775395854113,-150.0,0.00015282,2]
[419816618,1775395854122,-150.0,0.00015287,2]
[419816619,1775395854131,-150.0,0.00015289,2]
[419816620,1775395854141,-150.0,0.00015296,2]
[419816621,1775395854150,-150.0,0.00015298,2]
[419816622,1775395854159,-150.0,0.00015298,2]
[419816623,1775395854169,-246.9957,0.000153,2]
[419816624,1775395854178,-150.0,0.00015301,2]
[419816625,1775395854188,-150.0,0.00015302,2]
[419816626,1775395854197,-150.0,0.00015303,2]
[419816627,1775395854207,-150.0,0.00015304,2]
[419816628,1775395854217,-150.0,0.00015322,2]
[419816629,1775395854226,-200.0,0.00015322,2]
[419816630,1775395854235,-1481.23780761,0.00015322,2]
[419816631,1775395854244,-217.15233878,0.00015322,2]
[419816632,1775395854253,-339.62894544,0.00015322,2]
[419816633,1775395854263,-181.08010149,0.00015322,2]
[419816634,1775395854272,-771.01748645,0.00015322,2]
[419816635,1775395854282,-200.0,0.00015322,2]
[419816636,1775395854292,-719.04747942,0.00015322,2]
[419816637,1775395854301,-290.26104003,0.00015322,2]
[419816638,1775395854311,-150.0,0.00015323,2]
[419816639,1775395854321,-150.0,0.00015324,2]
[419816640,1775395854330,-500.0,0.00015324,2]
[419816641,1775395854340,-151.0,0.00015324,2]
[419816642,1775395854349,-150.0,0.00015326,2]
[419816643,1775395854359,-150.0,0.00015326,2]
[419816644,1775395854368,-150.0,0.00015329,2]
[419816645,1775395854378,-150.0,0.00015331,2]
[419816646,1775395854388,-150.0,0.00015339,2]
[419816647,1775395854398,-2000.0,0.00015342,2]
[419816648,1775395854407,-1432.23819105,0.00015342,2]
[419816649,1775395854418,-1000.0,0.00015342,2]
[419816650,1775395854428,-740.76074935,0.00015342,2]
[419816651,1775395854438,-1189.37318328,0.00015342,2]
[419816652,1775395854447,-1193.24301277,0.00015342,2]
[419816653,1775395854456,-2000.0,0.00015342,2]
[419816654,1775395854466,-2000.0,0.00015342,2]
[419816655,1775395854475,-2000.0,0.00015342,2]
[419816656,1775395854485,-2000.0,0.00015342,2]
[419816657,1775395854495,-1558.37452133,0.00015342,2]
[419816658,1775395854505,-1000.0,0.00015342,2]
[419816659,1775395854516,-1171.96403511,0.00015342,2]
[419816660,1775395854526,-2000.0,0.00015342,2]
[419816661,1775395854536,-2000.0,0.00015342,2]
[419816662,1775395854545,-500.0,0.00015342,2]
[419816663,1775395854556,-2000.0,0.00015342,2]
[419816664,1775395854565,-347.07116371,0.00015342,2]
[419816665,1775395854575,-2000.0,0.00015342,2]
[419816666,1775395854585,-1762.51968471,0.00015342,2]
[419816667,1775395854594,-2000.0,0.00015342,2]
[419816668,1775395854604,-2000.0,0.00015342,2]
[419816669,1775395854613,-1143.48326881,0.00015342,2]
[419816670,1775395854623,-1000.0,0.00015342,2]
[419816671,1775395854632,-2000.0,0.00015342,2]
[419816672,1775395854642,-1753.85680119,0.00015342,2]
[419816673,1775395854652,-2000.0,0.00015342,2]
[419816674,1775395854661,-150.0,0.00015344,2]
[419816675,1775395854670,-150.0,0.00015346,2]
[419816676,1775395854680,-150.0,0.00015354,2]
[419816677,1775395854690,-150.0,0.00015354,2]
[419816678,1775395854699,-150.0,0.00015357,2]
[419816679,1775395854708,-150.0,0.0001536,2]
[419816680,1775395854718,-150.0,0.0001536,2]
[419816681,1775395854727,-150.0,0.00015364,2]
[419816682,1775395854736,-150.0,0.00015369,2]
[419816683,1775395854747,-150.0,0.00015374,2]
[419816684,1775395854757,-150.0,0.00015378,2]
[419816685,1775395854766,-150.0,0.00015381,2]
[419816686,1775395854776,-150.0,0.00015382,2]
[419816687,1775395854786,-150.0,0.00015382,2]
[419816688,1775395854795,-1006.0,0.00015382,2]
[419816689,1775395854804,-150.0,0.00015385,2]
[419816690,1775395854813,-150.0,0.00015389,2]
[419816691,1775395854823,-150.0,0.00015391,2]
[419816692,1775395854832,-150.0,0.00015392,2]
[419816693,1775395854841,-150.0,0.00015405,2]
[419816694,1775395854851,-150.0,0.00015409,2]
[419816695,1775395854860,-150.0,0.00015411,2]
[419816696,1775395854870,-150.0,0.00015411,2]
[419816697,1775395854879,-150.0,0.00015414,2]
[419816698,1775395854889,-1006.0,0.00015417,2]
[419816699,1775395854899,-503.0,0.00015417,4]
[419816700,1775395854908,-150.0,0.00015418,2]
[419816701,1775395854918,-150.0,0.00015424,2]
[419816702,1775395854927,-150.0,0.00015426,2]
[419816703,1775395854937,-150.0,0.00015426,2]
[419816704,1775395854946,-150.0,0.00015432,2]
[419816705,1775395854956,-150.0,0.00015437,2]
[419816706,1775395854965,-150.0,0.00015439,2]
[419816707,1775395854976,-150.0,0.00015439,2]
[419816708,1775395854986,-150.0,0.00015443,2]
[419816709,1775395854995,-150.0,0.00015446,2]
[419816710,1775395855004,-150.0,0.00015447,2]
[419816711,1775395855015,-150.0,0.00015459,2]
[419816712,1775395855024,-150.0,0.00015461,2]
[419816713,1775395855035,-9035.0,0.00015462,2]
[419816714,1775395855045,-150.0,0.00015467,2]
[419816715,1775395855055,-150.0,0.00015467,2]
[419816716,1775395855064,-150.0,0.00015467,2]
[419816717,1775395855073,-150.0,0.00015467,2]
[419816718,1775395855082,-150.0,0.00015467,2]
[419816719,1775395855092,-150.0,0.00015467,2]
[419816720,1775395855101,-150.0,0.00015476,2]
[419816721,1775395855110,-174.60324019,0.00015478,2]
[419816722,1775395855120,-150.0,0.00015478,2]
[419816723,1775395855129,-200.0,0.0001548,2]
[419816724,1775395855139,-150.0,0.00015482,2]
[419816725,1775395855148,-150.0,0.00015484,2]
[419816726,1775395855157,-150.0,0.00015487,2]
[419816727,1775395855167,-150.0,0.00015488,2]
[419816728,1775395855177,-150.0,0.00015495,2]
[419816729,1775395855186,-150.0,0.00015495,2]
[419816730,1775395855196,-150.0,0.00015496,2]
[419816731,1775395855205,-2000.0,0.00015501,2]
[419816732,1775395855215,-150.0,0.00015504,2]
[419816733,1775395855224,-150.0,0.00015505,2]
[419816734,1775395855234,-150.0,0.00015508,2]
[419816735,1775395855243,-1006.0,0.00015512,2]
[419816736,1775395855252,-150.0,0.00015513,2]
[419816737,1775395855263,-150.0,0.00015523,2]
[419816738,1775395855272,-150.0,0.00015523,2]
[419816739,1775395855282,-150.0,0.00015527,2]
[419816740,1775395855291,-150.0,0.00015528,2]
[419816741,1775395855300,-150.0,0.0001553,2]
[419816742,1775395855310,-150.0,0.00015535,2]
[419816743,1775395855320,-150.0,0.00015535,2]
[419816744,1775395855329,-150.0,0.00015548,2]
[419816745,1775395855339,-150.0,0.00015549,2]
[419816746,1775395855349,-150.0,0.00015549,2]
[419816747,1775395855359,-150.0,0.00015551,2]
[419816748,1775395855369,-150.0,0.00015551,2]
[419816749,1775395855379,-150.0,0.00015552,2]
[419816750,1775395855388,-150.0,0.00015556,2]
[419816751,1775395855398,-150.0,0.00015564,2]
[419816752,1775395855408,-150.0,0.00015565,2]
[419816753,1775395855418,-150.0,0.00015569,2]
[419816754,1775395855428,-150.0,0.00015572,2]
[419816755,1775395855438,-150.0,0.00015579,2]
[419816756,1775395855448,-150.0,0.00015579,2]
[419816757,1775395855458,-150.0,0.00015583,2]
[419816758,1775395855467,-150.0,0.00015587,2]
[419816759,1775395855477,-150.0,0.0001559,2]
[419816760,1775395855487,-150.0,0.00015593,2]
[419816761,1775395855496,-150.0,0.00015594,2]
[419816762,1775395855506,-150.0,0.000156,2]
[419816763,1775395855516,-150.0,0.000156,2]
[419816764,1775395855525,-2000.0,0.00015601,2]
[419816765,1775395855535,-150.0,0.00015607,2]
[419816766,1775395855545,-150.0,0.00015607,2]
[419816767,1775395855555,-150.0,0.0001561,2]
[419816768,1775395855564,-1006.0,0.00015615,2]
[419816769,1775395855575,-150.0,0.00015616,2]
[419816770,1775395855586,-150.0,0.00015617,2]
[419816771,1775395855597,-150.0,0.00015617,2]
[419816772,1775395855607,-150.0,0.00015622,2]
[419816773,1775395855617,-150.0,0.00015631,2]
[419816774,1775395855629,-3620.0,0.00015634,2]
[419816775,1775395855640,-150.0,0.00015635,2]
[419816776,1775395855650,-150.0,0.00015635,2]
[419816777,1775395855661,-150.0,0.00015635,2]
[419816778,1775395855671,-150.0,0.00015639,2]
[419816779,1775395855681,-150.0,0.00015639,2]
[419816780,1775395855692,-150.0,0.00015644,2]
[419816781,1775395855703,-150.0,0.00015651,2]
[419816782,1775395855714,-150.0,0.00015651,2]
[419816783,1775395855725,-150.0,0.00015652,2]
[419816784,1775395855736,-150.0,0.00015662,2]
[419816785,1775395855746,-150.0,0.00015663,2]
[419816786,1775395855755,-150.0,0.00015663,2]
[419816787,1775395855765,-150.0,0.0001567,2]
[419816788,1775395855775,-150.0,0.00015672,2]
[419816789,1775395855785,-150.0,0.0001568,2]
[419816790,1775395855795,-150.0,0.0001568,2]
[419816791,1775395855806,-1081.25333983,0.0001568,2]
[419816792,1775395855817,-1059.45079213,0.0001568,2]
[419816793,1775395855827,-1079.15636767,0.0001568,2]
[419816794,1775395855838,-1075.01387995,0.0001568,2]
[419816795,1775395855848,-1096.25715674,0.0001568,2]
[419816796,1775395855858,-1129.37744536,0.0001568,2]
[419816797,1775395855868,-1060.84804175,0.0001568,2]
[419816798,1775395855877,-1129.16933567,0.0001568,2]
[419816799,1775395855888,-150.0,0.00015685,2]
[419816800,1775395855898,-150.0,0.00015687,2]
[419816801,1775395855908,-150.0,0.0001569,2]
[419816802,1775395855918,-150.0,0.00015691,2]
[419816803,1775395855928,-150.0,0.00015691,2]
[419816804,1775395855938,-150.0,0.00015692,2]
[419816805,1775395855948,-2463.48,0.000157,2]
[419816806,1775395855957,-525.0,0.000157,2]
[419816807,1775395855967,-2000.0,0.00015701,2]
[419816808,1775395855978,-150.0,0.00015704,2]
[419816809,1775395855987,-153.0,0.00015707,3]
[419816810,1775395855998,-150.0,0.00015707,2]
[419816811,1775395856009,-150.0,0.00015709,2]
[419816812,1775395856021,-150.0,0.00015713,2]
[419816813,1775395856032,-150.0,0.00015719,2]
[419816814,1775395856043,-150.0,0.00015719,2]
[419816815,1775395856054,-150.0,0.00015722,2]
[419816816,1775395856069,-150.0,0.0001573,2]
[419816817,1775395856081,-150.0,0.00015733,2]
[419816818,1775395856091,-150.0,0.00015733,2]
[419816819,1775395856102,-150.0,0.00015733,2]
[419816820,1775395856111,-150.0,0.00015738,2]
[419816821,1775395856122,-150.0,0.00015739,2]
[419816822,1775395856132,-150.0,0.00015742,2]
[419816823,1775395856142,-150.0,0.00015744,2]
[419816824,1775395856153,-150.0,0.00015747,2]
[419816825,1775395856163,-150.0,0.00015747,2]
[419816826,1775395856174,-150.0,0.00015752,2]
[419816827,1775395856184,-263.006862,0.00015753,2]
[419816828,1775395856194,-150.0,0.00015754,2]
[419816829,1775395856208,-150.0,0.00015757,2]
[419816830,1775395856218,-150.0,0.00015767,2]
[419816831,1775395856228,-150.0,0.00015774,2]
[419816832,1775395856239,-150.0,0.00015774,2]
[419816833,1775395856248,-150.0,0.00015775,2]
[419816834,1775395856259,-150.0,0.00015775,2]
[419816835,1775395856269,-150.0,0.00015775,2]
[419816836,1775395856279,-151.39,0.00015779,2]
[419816837,1775395856289,-151.39,0.00015779,2]
[419816838,1775395856299,-151.39,0.00015779,2]
[419816839,1775395856309,-151.39,0.00015779,2]
[419816840,1775395856319,-1500.0,0.00015779,2]
[419816841,1775395856330,-1500.0,0.00015779,2]
[419816842,1775395856340,-1500.0,0.00015779,2]
[419816843,1775395856349,-1500.0,0.00015779,2]
[419816844,1775395856359,-1500.0,0.00015779,2]
[419816845,1775395856369,-1500.0,0.00015779,2]
[419816846,1775395856379,-1500.0,0.00015779,2]
[419816847,1775395856389,-1500.0,0.00015779,2]
[419816848,1775395856399,-1500.0,0.00015779,2]
[419816849,1775395856409,-1500.0,0.00015779,2]
[419816850,1775395856418,-1583.61403,0.00015779,2]
[419816851,1775395856428,-150.0,0.00015791,2]
[419816852,1775395856438,-150.0,0.00015794,2]
[419816853,1775395856448,-150.0,0.00015795,2]
[419816854,1775395856458,-150.0,0.00015796,2]
[419816855,1775395856469,-150.0,0.00015797,2]
[419816856,1775395856479,-157.0,0.000158,2]
[419816857,1775395856488,-157.0,0.000158,2]
[419816858,1775395856498,-157.0,0.000158,3]
[419816859,1775395856508,-157.0,0.000158,3]
[419816860,1775395856518,-2000.0,0.00015801,2]
[419816861,1775395856529,-150.0,0.00015804,2]
[419816862,1775395856539,-150.0,0.00015804,2]
[419816863,1775395856548,-150.0,0.00015808,2]
[419816864,1775395856559,-150.0,0.00015809,2]
[419816865,1775395856569,-150.0,0.00015815,2]
[419816866,1775395856581,-150.0,0.0001582,2]
[419816867,1775395856590,-150.0,0.00015822,2]
[419816868,1775395856600,-150.0,0.00015825,2]
[419816869,1775395856610,-150.0,0.00015826,2]
[419816870,1775395856620,-150.0,0.00015832,2]
[419816871,1775395856630,-150.0,0.00015832,2]
[419816872,1775395856640,-150.0,0.00015836,2]
[419816873,1775395856650,-97697.2091726,0.0001584,2]
[419816874,1775395856661,-150.0,0.00015842,2]
[419816875,1775395856671,-150.0,0.00015843,2]
[419816876,1775395856681,-150.0,0.00015845,2]
[419816877,1775395856691,-150.0,0.00015855,2]
[419816878,1775395856701,-1006.0,0.00015855,2]
[419816879,1775395856711,-150.0,0.00015856,2]
[419816880,1775395856721,-150.0,0.0001586,2]
[419816881,1775395856731,-150.0,0.0001586,2]
[419816882,1775395856741,-150.0,0.00015861,2]
[419816883,1775395856751,-150.0,0.00015865,2]
[419816884,1775395856762,-200.0,0.0001587,2]
[419816885,1775395856772,-1536.04360649,0.0001587,2]
[419816886,1775395856782,-225.18697532,0.0001587,2]
[419816887,1775395856791,-187.78006525,0.0001587,2]
[419816888,1775395856801,-799.54513345,0.0001587,2]
[419816889,1775395856811,-200.0,0.0001587,2]
[419816890,1775395856820,-745.65223616,0.0001587,2]
[419816891,1775395856830,-301.00069851,0.0001587,2]
[419816892,1775395856840,-500.0,0.00015872,2]
[419816893,1775395856850,-150.0,0.00015872,2]
[419816894,1775395856860,-150.0,0.00015877,2]
[419816895,1775395856871,-150.0,0.00015878,2]
[419816896,1775395856881,-150.0,0.00015884,2]
[419816897,1775395856891,-150.0,0.00015887,2]
[419816898,1775395856902,-150.0,0.00015888,2]
[419816899,1775395856912,-150.0,0.00015888,2]
[419816900,1775395856922,-500.0,0.0001589,2]
[419816901,1775395856932,-500.0,0.0001589,2]
[419816902,1775395856942,-500.0,0.0001589,2]
[419816903,1775395856952,-500.0,0.0001589,2]
[419816904,1775395856962,-500.0,0.0001589,2]
[419816905,1775395856972,-500.0,0.0001589,2]
[419816906,1775395856983,-500.0,0.0001589,2]
[419816907,1775395856993,-500.0,0.0001589,2]
[419816908,1775395857003,-500.0,0.0001589,2]
[419816909,1775395857014,-500.0,0.0001589,2]
[419816910,1775395857023,-500.0,0.0001589,2]
[419816911,1775395857034,-500.0,0.0001589,2]
[419816912,1775395857044,-500.0,0.0001589,2]
[419816913,1775395857054,-500.0,0.0001589,2]
[419816914,1775395857063,-500.0,0.0001589,2]
[419816915,1775395857073,-648.46954732,0.0001589,2]
[419816916,1775395857084,-2000.0,0.0001589,2]
[419816917,1775395857094,-2500.0,0.0001589,2]
[419816918,1775395857104,-2509.3602543,0.0001589,2]
[419816919,1775395857114,-2500.0,0.0001589,2]
[419816920,1775395857124,-2500.0,0.0001589,2]
[419816921,1775395857134,-2447.77606198,0.0001589,2]
[419816922,1775395857146,-950.63286364,0.0001589,2]
[419816923,1775395857156,-2500.0,0.0001589,2]
[419816924,1775395857166,-1100.33490613,0.0001589,2]
[419816925,1775395857176,-2006.37622858,0.0001589,2]
[419816926,1775395857186,-2500.0,0.0001589,2]
[419816927,1775395857196,-2500.0,0.0001589,2]
[419816928,1775395857207,-823.00574972,0.0001589,2]